bitfinex-derivatives/quotes_SOLF0:USTF0_20250228
["timestamp","ask_amount","ask_price","bid_price","bid_amount"]
[1740744083485,0.05001451,133.49,133.46,0.05203137]
[1740744084882,7.4942,133.53,133.49,7.4959]
[1740744085083,7.4942,133.53,133.41,165.97062529]
[1740744085084,94.86208192,133.55,133.47,1.8252]
[1740744085288,12.12,133.57,133.48,1.8437]
[1740744085985,83.20834819,133.61,133.48,1.8437]
[1740744086288,83.20834819,133.61,133.51,0.05538117]
[1740744086586,0.04843848,133.56,133.51,0.05538117]
[1740744086788,90.69804819,133.61,133.48,165.88422529]
[1740744086982,83.20834819,133.61,133.52,0.04744809]
[1740744087184,83.20834819,133.61,133.48,165.88422529]
[1740744087991,83.20834819,133.61,133.56,7.4919]
[1740744088389,94.30833995,133.65,133.56,7.4919]
[1740744088592,0.0575781,133.6,133.57,0.0504704]
[1740744088889,94.30833995,133.65,133.57,0.0504704]
[1740744089481,25.22966055,133.65,133.57,167.83099569]
[1740744089684,18.80436055,133.65,133.64,7.4878]
[1740744091791,6.055e-05,133.65,133.64,11.2278]
[1740744093989,14.0213,133.81,133.64,3.74]
[1740744094191,1.9573,133.8,133.63,0.05767712]
[1740744094398,1.9573,133.8,133.63,1.4966699]
[1740744094594,1.9573,133.8,133.73,7.4823]
[1740744094794,7.4796,133.79,133.7,0.05622458]
[1740744094988,1.9573,133.8,133.67,12.14]
[1740744095185,3.7697,133.81,133.73,0.05470481]
[1740744095388,12.14,133.85,133.73,0.05470481]
[1740744095788,19.6162,133.85,133.69,203.66]
[1740744095988,5.6602,133.87,133.78,0.05675239]
[1740744096391,5.6602,133.87,133.7,165.5364116]
[1740744096686,5.6602,133.87,133.69,203.66]
[1740744096687,5.6602,133.87,133.71,1.49577443]
[1740744096894,7.4757,133.86,133.71,1.49577443]
[1740744097094,7.4757,133.86,133.81,7.478]
[1740744097390,5.6602,133.87,133.75,12.14]
[1740744097593,5.6602,133.87,133.82,0.05492132]
[1740744099292,203.66,133.98,133.82,0.05492132]
[1740744099485,5.7619,133.94,133.82,0.05492132]
[1740744099691,5.7619,133.94,133.75,176.18052529]
[1740744099885,5.7619,133.94,133.87,0.05742188]
[1740744100095,5.7619,133.94,133.82,12.22]
[1740744100395,5.7619,133.94,133.89,0.04923655]
[1740744102396,5.7619,133.94,133.82,164.04052529]
[1740744102592,5.7619,133.94,133.8,203.56]
[1740744102789,7.4768,133.84,133.8,211.0385]
[1740744102995,12.24,133.89,133.78,339.16705075]
[1740744103394,7.4768,133.84,133.8,7.4787]
[1740744103596,0.05145909,133.85,133.82,0.054893]
[1740744104904,7.52765909,133.85,133.82,0.054893]
[1740744105502,0.05145909,133.85,133.82,0.054893]
[1740744107106,7.4766,133.84,133.82,0.054893]
[1740744107300,0.05145909,133.85,133.82,0.054893]
[1740744107501,12.24,133.89,133.82,0.054893]
[1740744107796,12.24,133.89,133.72,367.50052529]
[1740744108701,7.4789,133.8,133.77,7.4801]
[1740744108997,12.24,133.89,133.72,367.50052529]
[1740744109203,0.05221887,133.8,133.77,0.04813255]
[1740744109500,7.4781,133.82,133.78,7.4797]
[1740744109798,0.05457929,133.8,133.77,0.05334763]
[1740744110195,1.9477,133.87,133.72,367.50052529]
[1740744110402,0.04953471,133.8,133.78,7.4799]
[1740744110702,1.8657,133.86,133.72,367.50052529]
[1740744110899,7.4781,133.82,133.78,7.4796]
[1740744111096,0.054893,133.8,133.78,7.53325025]
[1740744111497,0.054893,133.8,133.78,0.05365025]
[1740744112999,9.3e-05,133.8,133.79,7.4794]
[1740744114494,9.3e-05,133.8,133.78,7.53335025]
[1740744114895,1.8995,133.85,133.78,7.53335025]
[1740744115203,7.4781,133.82,133.78,7.53335025]
[1740744115504,1.8995,133.85,133.78,0.05365025]
[1740744116005,7.4786,133.81,133.78,0.05365025]
[1740744116199,1.8995,133.85,133.78,7.53365025]
[1740744116594,7.4782,133.82,133.78,7.53365025]
[1740744117602,7.4784,133.81,133.78,7.53365025]
[1740744117805,1.8995,133.85,133.78,0.05365025]
[1740744118303,7.4787,133.81,133.78,0.05365025]
[1740744118604,1.8995,133.85,133.72,367.50052529]
[1740744118904,1.8995,133.85,133.72,203.46]
[1740744119503,1.8995,133.85,133.77,7.4802]
[1740744119900,0.05365025,133.82,133.8,0.05045023]
[1740744120905,7.4786,133.81,133.77,7.4803]
[1740744121296,1.8995,133.85,133.72,203.46]
[1740744121904,1.8995,133.85,133.76,7.4809]
[1740744122202,0.04891395,133.8,133.77,0.05387137]
[1740744122403,7.4795,133.79,133.77,0.05387137]
[1740744122804,0.04891395,133.8,133.77,7.53437137]
[1740744123209,7.52811395,133.8,133.77,7.53437137]
[1740744123411,0.04891395,133.8,133.77,0.05387137]
[1740744123908,7.4805,133.78,133.74,7.482]
[1740744124304,7.4812,133.76,133.71,198.75352286]
[1740744124510,7.4812,133.76,133.73,7.4825]
[1740744124711,1.8925,133.77,133.73,40.28061217]
[1740744124903,7.52943839,133.76,133.73,40.32825486]
[1740744125109,0.04823839,133.76,133.73,40.32825486]
[1740744126415,0.04823839,133.76,133.75,7.4817]
[1740744126809,0.04823839,133.76,133.73,40.32825486]
[1740744127010,5.30393859,133.77,133.75,40.28061217]
[1740744127208,1.8925,133.78,133.75,40.28061217]
[1740744127409,1.8676,133.79,133.77,7.48]
[1740744127609,1.8676,133.79,133.75,40.28061217]
[1740744128012,1.9163,133.85,133.75,40.28061217]
[1740744128218,4.73e-06,133.78,133.76,0.05274014]
[1740744128416,1.9049,133.84,133.75,40.28061217]
[1740744128615,1.9049,133.84,133.82,7.4774]
[1740744129514,1.95748882,133.84,133.82,7.5261036]
[1740744129720,1.95748882,133.84,133.83,7.4772]
[1740744129920,1.95748882,133.84,133.82,0.0487036]
[1740744130617,1.95748882,133.84,133.83,7.4772]
[1740744131015,1.95748882,133.84,133.82,0.0487036]
[1740744131524,9.43418882,133.84,133.82,0.0487036]
[1740744131826,1.95748882,133.84,133.82,0.0487036]
[1740744132213,1.95748882,133.84,133.83,7.4772]
[1740744132426,1.95748882,133.84,133.82,0.0487036]
[1740744132722,1.95748882,133.84,133.79,40.28061217]
[1740744133625,1.95748882,133.84,133.82,7.4775]
[1740744133824,1.95748882,133.84,133.79,40.28061217]
[1740744133825,1.95748882,133.84,133.8,0.04924368]
[1740744134329,1.95748882,133.84,133.83,7.4772]
[1740744134827,0.05258882,133.84,133.83,7.4772]
[1740744138032,0.05258882,133.84,133.83,13.30830646]
[1740744138625,1.8274,133.87,133.83,5.83110646]
[1740744138828,1.8274,133.87,133.84,7.4761]
[1740744139232,1.8274,133.87,133.83,5.83110646]
[1740744139428,1.9761,133.86,133.82,40.28061217]
[1740744139633,7.4768,133.84,133.82,34.27011217]
[1740744139934,7.4768,133.84,133.82,31.31759771]
[1740744140129,0.05124824,133.85,133.82,54.58148779]
[1740744140329,7.4772,133.83,133.82,33.66068779]
[1740744140831,11.2172,133.83,133.82,8.779e-05]
[1740744141132,7.4772,133.83,133.82,8.779e-05]
[1740744141439,7.4778,133.82,133.81,90.41451717]
[1740744141936,11.2178,133.82,133.81,90.41451717]
[1740744142136,12.18,133.84,133.81,90.41451717]
[1740744143331,12.18,133.84,133.81,0.04926625]
[1740744143739,15.92,133.84,133.81,6.625e-05]
[1740744143931,7.4778,133.82,133.81,6.625e-05]
[1740744144331,11.2178,133.82,133.81,6.625e-05]
[1740744145734,3.74,133.82,133.69,135.43883333]
[1740744145937,57.7768582,133.83,133.69,135.43883333]
[1740744146137,12.8168582,133.82,133.7,7.4842]
[1740744146337,7.4825,133.74,133.7,7.4842]
[1740744147041,0.04738004,133.73,133.71,0.04868039]
[1740744148045,7.4833,133.72,133.71,0.04868039]
[1740744148844,7.53038004,133.73,133.71,0.04868039]
[1740744150939,7.4833,133.72,133.71,0.04868039]
[1740744151141,7.4833,133.72,133.71,8.039e-05]
[1740744151340,12.55092074,133.72,133.71,8.039e-05]
[1740744153044,5.06762074,133.72,133.58,1.9816]
[1740744153343,7.489,133.62,133.58,3.8447]
[1740744153742,7.489,133.62,133.58,11.3356]
[1740744154249,0.05559083,133.61,133.59,0.05107811]
[1740744156050,7.54549083,133.61,133.59,0.05107811]
[1740744156253,0.05559083,133.61,133.59,0.05107811]
[1740744156846,7.4901,133.6,133.59,0.05107811]
[1740744157848,7.4901,133.6,133.59,7.811e-05]
[1740744158052,11.2301,133.6,133.59,7.811e-05]
[1740744159053,12.55898347,133.6,133.59,7.811e-05]
[1740744159447,11.2301,133.6,133.59,7.811e-05]
[1740744159854,12.55902819,133.6,133.59,7.811e-05]
[1740744163061,7.4943,133.53,133.48,7.4966]
[1740744163256,12.12,133.53,133.42,1.9916]
[1740744164156,0.05006892,133.49,133.46,0.051862]
[1740744164356,0.05006892,133.49,133.48,7.4964]
[1740744164556,12.12,133.53,133.46,0.051862]
[1740744164557,12.12,133.53,133.47,1.872]
[1740744164761,12.12,133.53,133.5,7.4956]
[1740744165063,12.12,133.53,133.48,1.8793]
[1740744165464,7.4946,133.52,133.48,9.3759]
[1740744165766,7.54422627,133.52,133.49,0.05133869]
[1740744166360,0.04962627,133.52,133.49,0.05133869]
[1740744167258,3.78962627,133.52,133.43,7.4995]
[1740744167461,0.04962627,133.52,133.42,1.9637]
[1740744167669,12.12,133.53,133.42,1.9637]
[1740744168061,7.4964,133.49,133.42,1.9637]
[1740744168471,12.12,133.53,133.42,1.9637]
[1740744168667,0.05614135,133.47,133.44,0.05596249]
[1740744169169,12.12,133.53,133.42,1.9637]
[1740744169367,0.05393257,133.47,133.44,0.05484686]
[1740744169566,7.55173257,133.47,133.44,0.05484686]
[1740744169866,0.05522697,133.47,133.44,0.05496434]
[1740744170667,7.55302697,133.47,133.44,0.05496434]
[1740744171764,0.05522697,133.47,133.44,0.05496434]
[1740744171970,12.2,133.54,133.46,7.4976]
[1740744172368,7.4949,133.52,133.46,7.4976]
[1740744172969,12.2,133.54,133.42,1.9637]
[1740744173168,0.05205885,133.5,133.48,0.05043741]
[1740744173573,7.54825885,133.5,133.48,0.05043741]
[1740744173970,7.4962,133.49,133.48,0.05043741]
[1740744174870,7.4962,133.49,133.48,3.741e-05]
[1740744177172,0.05205885,133.5,133.48,3.741e-05]
[1740744177771,7.4962,133.49,133.48,3.741e-05]
[1740744177974,0.05205885,133.5,133.48,3.741e-05]
[1740744178371,0.05205885,133.5,133.49,7.4962]
[1740744179374,0.05205885,133.5,133.48,3.741e-05]
[1740744179574,7.4962,133.49,133.48,3.741e-05]
[1740744180471,11.2362,133.49,133.48,3.741e-05]
[1740744180882,12.56642675,133.49,133.48,3.741e-05]
[1740744181583,5.07022675,133.49,133.37,13.52804883]
[1740744181783,1.33022675,133.48,133.38,3.89]
[1740744181976,1.33022675,133.5,133.38,3.89]
[1740744182178,1.33022675,133.49,133.38,3.89]
[1740744182482,7.5012,133.41,133.38,5.8114]
[1740744182680,12.22,133.43,133.42,0.05303203]
[1740744182880,12.22,133.43,133.38,5.8114]
[1740744183085,7.501,133.41,133.38,5.8114]
[1740744183682,7.5017,133.4,133.38,5.8114]
[1740744183888,12.22,133.43,133.38,5.8114]
[1740744184084,0.04783601,133.4,133.38,5.86384935]
[1740744184683,0.04783601,133.4,133.38,3.94244935]
[1740744184881,7.5019,133.39,133.38,3.94244935]
[1740744185276,0.04783601,133.4,133.38,3.94244935]
[1740744185483,7.5004,133.42,133.38,3.94244935]
[1740744185684,279.82553524,133.51,133.39,1.8937]
[1740744185879,7.4988,133.45,133.4,7.501]
[1740744186081,12.24,133.5,133.39,1.8937]
[1740744186686,7.4989,133.45,133.43,0.05188459]
[1740744186885,0.04779963,133.46,133.43,0.05188459]
[1740744187086,0.04779963,133.46,133.43,7.55138459]
[1740744187389,0.04779963,133.46,133.43,0.05188459]
[1740744187684,7.4985,133.45,133.43,0.05188459]
[1740744187887,4.4886,133.45,133.43,0.05188459]
[1740744188590,12.24,133.5,133.43,0.05188459]
[1740744188887,12.22,133.52,133.43,0.05188459]
[1740744189087,7.4959,133.5,133.46,7.4975]
[1740744189298,12.22,133.52,133.47,1.9705]
[1740744189478,7.4962,133.5,133.47,1.9705]
[1740744189986,0.05439153,133.5,133.47,9.52214446]
[1740744190183,12.22,133.52,133.47,2.02504446]
[1740744190579,2.0039,133.58,133.47,2.02504446]
[1740744190790,12.24,133.57,133.47,2.02504446]
[1740744191088,7.4938,133.54,133.49,7.4958]
[1740744191286,0.05006409,133.53,133.51,0.05326417]
[1740744192080,7.4938,133.54,133.51,0.05326417]
[1740744192287,12.24,133.57,133.51,0.05326417]
[1740744192488,7.4942,133.53,133.51,0.05326417]
[1740744192791,12.24,133.57,133.51,0.05326417]
[1740744192990,7.4936,133.54,133.51,0.05326417]
[1740744193390,7.54694416,133.54,133.51,0.05326417]
[1740744193690,0.95102439,133.61,133.51,0.05326417]
[1740744193691,12.26,133.6,133.51,0.05326417]
[1740744193886,0.95102439,133.61,133.53,7.494]
[1740744194089,0.95102439,133.61,133.46,12.26]
[1740744194286,0.95102439,133.61,133.46,176.30052529]
[1740744194796,7.4915,133.58,133.54,7.4934]
[1740744194983,3.901,133.66,133.52,0.05482811]
[1740744195189,12.24,133.67,133.52,164.0953534]
[1740744195389,7.4893,133.62,133.58,7.4908]
[1740744195586,7.4893,133.62,133.52,164.04052529]
[1740744195587,3.9439,133.69,133.52,164.04052529]
[1740744195788,12.24,133.67,133.52,164.04052529]
[1740744196083,12.24,133.67,133.58,0.04978789]
[1740744196485,12.24,133.67,133.52,164.04052529]
[1740744196686,12.24,133.67,133.61,0.04771641]
[1740744196885,7.4888,133.63,133.58,7.4912]
[1740744197086,7.4888,133.63,133.52,164.04052529]
[1740744197087,12.24,133.67,133.52,164.04052529]
[1740744197283,12.24,133.67,133.59,0.05303586]
[1740744197487,7.4901,133.6,133.59,0.05303586]
[1740744197692,19.7301,133.6,133.59,0.05303586]
[1740744198094,19.7301,133.6,133.59,3.586e-05]
[1740744199785,23.4701,133.6,133.59,3.586e-05]
[1740744199989,25.3661,133.6,133.59,3.586e-05]
[1740744200185,29.239,133.6,133.59,3.586e-05]
[1740744202296,30.56835082,133.6,133.59,3.586e-05]
[1740744204602,29.239,133.6,133.59,3.586e-05]
[1740744204799,30.56819612,133.6,133.59,3.586e-05]
[1740744205299,26.82819612,133.6,133.59,3.586e-05]
[1740744206404,30.56819612,133.6,133.59,3.586e-05]
[1740744208204,30.56835103,133.6,133.59,3.586e-05]
[1740744208696,26.82835103,133.6,133.59,3.586e-05]
[1740744208899,14.58835103,133.6,133.59,3.586e-05]
[1740744209100,21.05945103,133.6,133.59,3.586e-05]
[1740744211301,8.81945103,133.6,133.59,3.586e-05]
[1740744211710,7.4901,133.6,133.59,3.586e-05]
[1740744212205,8.81895474,133.6,133.59,3.586e-05]
[1740744213002,12.55895474,133.6,133.59,3.586e-05]
[1740744213199,35.07895474,133.6,133.59,3.586e-05]
[1740744213403,47.87520077,133.6,133.59,3.586e-05]
[1740744214207,84.97919033,133.6,133.59,3.586e-05]
[1740744215105,77.48909033,133.6,133.44,1.9497]
[1740744215306,7.4928,133.56,133.44,5.6838]
[1740744215501,13.56885474,133.55,133.44,5.6838]
[1740744215701,7.4972,133.48,133.44,5.6838]
[1740744216210,12.24,133.55,133.44,5.6838]
[1740744216412,0.05024144,133.47,133.45,0.04810221]
[1740744216611,12.24,133.55,133.45,7.4985]
[1740744216905,0.05303586,133.47,133.45,0.04763242]
[1740744217109,12.24,133.55,133.44,5.6838]
[1740744217306,7.4947,133.52,133.47,7.497]
[1740744217512,0.05002886,133.51,133.44,5.6838]
[1740744217809,0.05002886,133.51,133.48,0.05363944]
[1740744218611,7.4962,133.49,133.48,0.05363944]
[1740744219213,7.4962,133.49,133.48,3.944e-05]
[1740744220110,8.82633748,133.49,133.48,3.944e-05]
[1740744220605,8.82642304,133.49,133.48,3.944e-05]
[1740744220809,7.4962,133.49,133.48,3.944e-05]
[1740744222214,8.82634997,133.49,133.48,3.944e-05]
[1740744222410,7.4962,133.49,133.48,3.944e-05]
[1740744223716,0.05002886,133.51,133.48,3.944e-05]
[1740744224216,133.98632086,133.54,133.48,3.944e-05]
[1740744224719,7.495,133.52,133.48,3.944e-05]
[1740744225110,133.98632086,133.54,133.48,3.944e-05]
[1740744225314,0.04997201,133.51,133.48,3.944e-05]
[1740744226313,7.4962,133.49,133.48,3.944e-05]
[1740744227816,12.56634179,133.49,133.48,3.944e-05]
[1740744228810,8.82634179,133.49,133.48,3.944e-05]
[1740744229216,12.56634179,133.49,133.48,3.944e-05]
[1740744230017,57.52634179,133.49,133.48,3.944e-05]
[1740744230321,62.83548444,133.49,133.36,1.9929]
[1740744230516,22.52,133.47,133.36,1.9929]
[1740744230819,3.23804179,133.46,133.36,1.9929]
[1740744231019,1.9079,133.46,133.36,1.9929]
[1740744231411,7.501,133.41,133.4,0.04720028]
[1740744231720,19.741,133.41,133.4,2.8e-07]
[1740744232211,46.001,133.41,133.4,2.8e-07]
[1740744232516,47.33203057,133.41,133.4,2.8e-07]
[1740744232716,51.17543057,133.41,133.4,2.8e-07]
[1740744233223,28.65543057,133.41,133.4,2.8e-07]
[1740744234118,24.91543057,133.41,133.4,2.8e-07]
[1740744234921,7.501,133.41,133.4,2.8e-07]
[1740744235217,21.07206575,133.41,133.4,2.8e-07]
[1740744236822,24.81208598,133.41,133.4,2.8e-07]
[1740744238422,19.741,133.41,133.4,2.8e-07]
[1740744238619,21.07206891,133.41,133.4,2.8e-07]
[1740744239424,24.81206891,133.41,133.4,2.8e-07]
[1740744240626,21.07206891,133.41,133.4,2.8e-07]
[1740744241729,8.83206891,133.41,133.4,2.8e-07]
[1740744241920,12.22,133.41,133.4,2.8e-07]
[1740744242822,19.7207,133.41,133.4,2.8e-07]
[1740744244923,3.4609,133.41,133.4,2.8e-07]
[1740744245229,14.57,133.46,133.4,3.74000028]
[1740744245529,14.57,133.46,133.41,1.9339]
[1740744245530,22.0684,133.46,133.41,1.9339]
[1740744245725,9.8484,133.46,133.41,1.9339]
[1740744245926,31.09584447,133.52,133.41,1.9339]
[1740744246121,12.22,133.51,133.41,1.9339]
[1740744246626,0.05089531,133.47,133.45,0.04881639]
[1740744247024,7.4979,133.46,133.45,1.639e-05]
[1740744249928,0.05089531,133.47,133.45,1.639e-05]
[1740744250230,4.53939531,133.47,133.45,1.639e-05]
[1740744250631,7.4979,133.46,133.45,1.639e-05]
[1740744253728,9.4289,133.46,133.45,1.639e-05]
[1740744254821,10.75938845,133.46,133.45,1.639e-05]
[1740744255831,10.7596366,133.46,133.45,1.639e-05]
[1740744258728,9.4289,133.46,133.45,1.639e-05]
[1740744258932,10.75928856,133.46,133.45,1.639e-05]
[1740744259336,10.75951503,133.46,133.45,1.639e-05]
[1740744259729,14.49951503,133.46,133.45,1.639e-05]
[1740744260237,10.75951503,133.46,133.45,1.639e-05]
[1740744261031,8.82851503,133.46,133.45,1.639e-05]
[1740744261832,19.7379,133.46,133.45,1.639e-05]
[1740744263138,21.06827366,133.46,133.45,1.639e-05]
[1740744263538,19.7379,133.46,133.45,1.639e-05]
[1740744265235,21.06834249,133.46,133.45,1.639e-05]
[1740744266238,19.7379,133.46,133.45,1.639e-05]
[1740744266438,7.4979,133.46,133.45,1.639e-05]
[1740744268335,0.05312396,133.47,133.45,1.639e-05]
[1740744268840,7.55082396,133.47,133.45,1.639e-05]
[1740744269236,0.05312396,133.47,133.45,1.639e-05]
[1740744270039,7.4979,133.46,133.45,1.639e-05]
[1740744271644,0.05312396,133.47,133.45,1.639e-05]
[1740744272042,0.05312396,133.47,133.45,3.74001639]
[1740744272241,48.1,133.49,133.45,3.74001639]
[1740744272437,48.1,133.49,133.45,1.639e-05]
[1740744272641,42.2918,133.49,133.45,167.78054168]
[1740744272840,22.73706131,133.49,133.45,167.78054168]
[1740744273041,7.4927,133.56,133.51,7.4948]
[1740744273749,121.51129641,133.55,133.52,0.04851517]
[1740744273948,114.01809641,133.55,133.52,0.04851517]
[1740744274248,129.01777032,133.55,133.45,164.04052529]
[1740744274450,129.01777032,133.55,133.52,0.0489098]
[1740744274750,129.01777032,133.55,133.45,164.04052529]
[1740744275045,7.4967,133.49,133.44,7.4988]
[1740744275440,7.4967,133.49,133.45,0.04972887]
[1740744276443,12.24,133.52,133.45,0.04972887]
[1740744276641,27.23967391,133.52,133.45,0.04972887]
[1740744276839,29.08637391,133.52,133.45,0.04972887]
[1740744277049,7.4979,133.46,133.45,0.04972887]
[1740744277547,22.49757391,133.46,133.45,0.04972887]
[1740744279855,14.99967391,133.46,133.45,0.04972887]
[1740744280057,7.4976,133.47,133.45,0.04972887]
[1740744280555,7.4979,133.46,133.45,0.04972887]
[1740744280953,22.49757391,133.46,133.45,0.04972887]
[1740744282656,14.99967391,133.46,133.38,164.04052529]
[1740744282858,12.22,133.45,133.35,7.5036]
[1740744283051,14.1773,133.45,133.35,7.5036]
[1740744283252,29.17697391,133.45,133.35,7.5036]
[1740744283548,29.17697391,133.45,133.33,7.5048]
[1740744283755,0.04957975,133.41,133.39,0.05559977]
[1740744284056,7.5023,133.39,133.33,7.5051]
[1740744284256,15.04925366,133.41,133.39,0.05666908]
[1740744284456,15.04925366,133.41,133.3,368.00052529]
[1740744284457,14.99967391,133.41,133.3,368.00052529]
[1740744284655,15.04946587,133.41,133.39,0.04746754]
[1740744284958,0.04979196,133.41,133.3,368.00052529]
[1740744285257,14.1773,133.45,133.3,368.00052529]
[1740744285453,0.04979196,133.37,133.35,7.5038]
[1740744285653,0.04979196,133.37,133.34,0.05204605]
[1740744285859,7.5014,133.4,133.34,7.5043]
[1740744286054,0.04979196,133.37,133.34,0.05420192]
[1740744286464,27.26946587,133.37,133.34,0.05420192]
[1740744288160,7.5041,133.35,133.34,0.05420192]
[1740744291860,12.26979196,133.37,133.34,0.05420192]
[1740744292052,27.26946587,133.37,133.34,0.05420192]
[1740744292255,12.26979196,133.37,133.34,0.05420192]
[1740744292654,7.5038,133.36,133.34,0.05420192]
[1740744293565,19.77309196,133.37,133.34,0.05420192]
[1740744293764,12.26979196,133.37,133.34,0.05420192]
[1740744293966,0.04979196,133.37,133.34,0.05420192]
[1740744294763,7.5041,133.35,133.34,0.05420192]
[1740744296965,7.5061,133.32,133.19,216.22]
[1740744297269,2.59,133.31,133.19,204.0]
[1740744297472,7.5084,133.28,133.23,7.5106]
[1740744297665,17.58967391,133.31,133.19,204.0]
[1740744298064,17.58967391,133.31,133.24,7.51]
[1740744298261,0.05191168,133.26,133.24,0.05730272]
[1740744298465,2.59,133.31,133.25,7.5093]
[1740744298661,0.04809606,133.26,133.25,7.5093]
[1740744298867,2.59,133.31,133.19,204.0]
[1740744299072,0.0552835,133.27,133.26,7.5089]
[1740744299270,2.59,133.31,133.19,204.0]
[1740744299568,2.59,133.31,133.25,0.05232763]
[1740744299873,2.59,133.31,133.25,3.81232763]
[1740744300071,2.59,133.31,133.25,0.05232763]
[1740744300467,2.59,133.31,133.3,7.5069]
[1740744300673,2.59,133.31,133.25,164.09285292]
[1740744300872,2.59,133.31,133.21,12.18]
[1740744301067,2.59,133.31,133.3,7.5069]
[1740744302273,2.59,133.31,133.27,0.05461471]
[1740744302771,10.0968,133.31,133.27,0.05461471]
[1740744302969,2.59,133.31,133.27,0.05461471]
[1740744303169,10.0967,133.31,133.27,0.05461471]
[1740744303368,2.59,133.31,133.27,0.05461471]
[1740744303876,17.58967391,133.31,133.27,0.05461471]
[1740744304067,29.76967391,133.31,133.27,0.05461471]
[1740744304475,7.5081,133.28,133.27,0.05461471]
[1740744305669,0.05347044,133.29,133.27,7.56321471]
[1740744305872,0.05347044,133.29,133.27,0.05461471]
[1740744306274,15.05314435,133.29,133.27,0.05461471]
[1740744306476,7.5081,133.28,133.27,0.05461471]
[1740744307376,0.05347044,133.29,133.27,0.05461471]
[1740744307574,15.05314435,133.29,133.27,0.05461471]
[1740744307974,0.05347044,133.29,133.27,0.05461471]
[1740744308272,0.05347044,133.29,133.28,7.5081]
[1740744309080,0.05347044,133.29,133.27,7.56301471]
[1740744309273,0.05347044,133.29,133.27,0.05461471]
[1740744309577,7.5081,133.28,133.27,0.05461471]
[1740744309972,22.50777391,133.28,133.27,0.05461471]
[1740744310275,27.19967391,133.28,133.14,15.0319]
[1740744310479,31.02977391,133.28,133.14,15.0319]
[1740744311174,7.5087,133.27,133.23,7.5105]
[1740744311376,31.02977391,133.28,133.2,0.04824387]
[1740744311570,0.04754997,133.26,133.15,15.0307]
[1740744311767,0.04754997,133.26,133.23,0.04779875]
[1740744311974,23.5383,133.28,133.15,15.0307]
[1740744312174,0.05243005,133.26,133.23,0.05396285]
[1740744312375,31.02977391,133.28,133.23,0.05396285]
[1740744312571,31.02977391,133.28,133.15,15.0307]
[1740744312774,0.05172585,133.26,133.24,0.05739702]
[1740744312972,31.02977391,133.28,133.15,15.0307]
[1740744313166,0.04869357,133.26,133.24,0.05174225]
[1740744313368,31.02977391,133.28,133.24,7.5097]
[1740744313566,0.04976505,133.26,133.24,7.55703283]
[1740744315071,0.04976505,133.26,133.24,0.04733283]
[1740744315277,0.04976505,133.26,133.25,7.5097]
[1740744315771,0.04976505,133.26,133.24,7.55733283]
[1740744316175,0.04976505,133.26,133.24,0.04733283]
[1740744316577,15.04943896,133.26,133.24,0.04733283]
[1740744316780,15.04943896,133.26,133.07,121.90463593]
[1740744316981,15.04943896,133.26,133.18,7.5133]
[1740744317177,14.99967391,133.26,133.07,121.90463593]
[1740744317380,14.99967391,133.26,133.17,7.5142]
[1740744318080,0.05177297,133.23,133.2,0.05668439]
[1740744318380,14.99967391,133.26,133.1,40.63487864]
[1740744318580,0.05098182,133.23,133.2,0.04839165]
[1740744318774,14.99967391,133.26,133.17,7.5141]
[1740744318974,14.99967391,133.26,133.1,204.67540393]
[1740744319282,14.99967391,133.26,133.1,40.63487864]
[1740744319679,0.05188993,133.19,133.17,0.05254404]
[1740744320079,14.99967391,133.19,133.14,7.5157]
[1740744320277,22.57027822,133.19,133.17,0.05022394]
[1740744320582,14.99967391,133.19,133.1,40.63487864]
[1740744320775,15.04847591,133.19,133.17,0.05149273]
[1740744320975,15.04847591,133.19,133.05,25.20021966]
[1740744321180,14.99967391,133.19,133.05,25.20021966]
[1740744321481,7.5143,133.17,133.05,10.15871966]
[1740744321680,14.99967391,133.19,133.05,10.15871966]
[1740744321881,1.8621,133.18,133.05,10.15871966]
[1740744322280,0.05172814,133.13,133.1,7.56661117]
[1740744322480,0.05172814,133.13,133.1,0.04861117]
[1740744322675,0.05172814,133.13,133.05,10.15871966]
[1740744322880,0.05172814,133.13,133.1,7.57403545]
[1740744323075,14.99967391,133.13,133.1,0.05633545]
[1740744323282,15.05634103,133.13,133.1,0.05633545]
[1740744323882,7.57356712,133.13,133.1,0.05633545]
[1740744324281,15.05634103,133.13,133.1,0.05633545]
[1740744324477,7.5172,133.12,133.1,0.05633545]
[1740744324784,0.05666712,133.13,133.1,0.05633545]
[1740744326888,0.05666712,133.13,133.11,7.5173]
[1740744327084,0.05666712,133.13,133.1,0.05633545]
[1740744327389,0.05666712,133.13,133.11,7.5176]